bitfinex/quotes_ETHUSD_20250131
["timestamp","ask_amount","ask_price","bid_price","bid_amount"]
[1738339331947,2.1759,3434.1,3433.0,3.0]
[1738339332128,2.9125,3433.5,3433.0,3.0]
[1738339332287,1.5266,3433.4,3433.0,3.0]
[1738339332618,0.55,3433.1,3433.0,3.0]
[1738339332936,2.91281,3433.1,3433.0,3.0]
[1738339333140,4.98941,3433.1,3433.0,3.0]
[1738339333746,4.98941,3433.1,3433.0,2.5575]
[1738339334234,2.3166,3433.1,3433.0,2.5575]
[1738339334470,5.22941,3433.1,3433.0,2.5575]
[1738339335238,2.0766,3433.1,3433.0,5.5575]
[1738339335436,1.5266,3433.1,3433.0,5.5575]
[1738339335588,2.91231,3433.7,3433.0,2.5575]
[1738339335786,2.91241,3433.6,3433.0,2.5575]
[1738339335987,2.91154,3434.6,3433.1,3.03]
[1738339336243,0.24,3434.3,3433.1,3.03]
[1738339336441,2.9123,3433.8,3433.1,3.03]
[1738339336638,2.91197,3434.1,3433.1,3.03]
[1738339336931,2.91196,3434.2,3433.1,3.03]
[1738339337140,0.606375,3434.2,3433.1,3.03]
[1738339337287,0.24,3434.3,3433.1,3.03]
[1738339337487,2.91206,3434.0,3433.1,3.03]
[1738339337813,3.15189,3434.2,3433.1,3.03]
[1738339338144,2.91163,3434.5,3433.1,3.03]
[1738339338442,0.55,3434.3,3433.1,3.03]
[1738339338640,1.5737,3434.1,3433.1,3.03]
[1738339338937,1.5737,3434.1,3433.1,5.94275]
[1738339339569,1.5737,3434.1,3433.1,3.03]
[1738339339769,1.5794,3434.5,3433.2,2.91265]
[1738339339967,0.55,3434.4,3433.1,3.03]
[1738339340136,0.55,3434.1,3433.1,3.03]
[1738339340334,0.346187,3434.0,3433.1,3.03]
[1738339340563,1.5566,3433.8,3433.1,0.03]
[1738339341082,1.5566,3433.8,3433.1,3.03]
[1738339341449,4.46885,3433.8,3433.1,3.03]
[1738339341769,0.346187,3434.0,3433.1,3.03]
[1738339342085,2.91194,3434.2,3433.1,3.03]
[1738339342289,2.91231,3433.7,3433.1,0.03]
[1738339342579,0.55,3433.9,3433.1,0.03]
[1738339342742,0.34985096,3433.8,3433.1,3.03]
[1738339342936,2.91201,3434.1,3433.1,3.03]
[1738339343184,2.91226,3433.8,3433.1,3.03]
[1738339343490,2.91248,3433.5,3433.1,3.03]
[1738339343694,2.91235,3433.7,3433.1,0.03]
[1738339343979,1.594,3434.0,3433.1,0.03]
[1738339344193,1.594,3434.0,3433.1,4.776]
[1738339345663,1.5375,3434.5,3433.1,4.776]
[1738339345976,2.10614115,3434.9,3433.4,4.746]
[1738339346176,1.75264729,3434.9,3433.4,1.746]
[1738339346497,1.75264729,3434.9,3433.4,4.65854]
[1738339346722,1.5375,3434.9,3433.8,4.746]
[1738339346991,3.21405036,3435.3,3434.0,4.746]
[1738339347393,0.02614391,3434.8,3434.0,4.746]
[1738339347597,0.02614391,3434.8,3434.0,7.65803]
[1738339348024,0.02614391,3434.8,3434.4,1.746]
[1738339348326,0.02614391,3434.8,3433.2,0.0075]
[1738339348327,0.02614391,3434.8,3434.6,4.746]
[1738339348732,0.02614391,3434.8,3434.7,5.91146]
[1738339349037,0.02614391,3434.8,3434.7,7.66496]
[1738339349192,0.02614391,3434.8,3434.7,5.91896]
[1738339349937,0.02614391,3434.8,3434.7,9.21796]
[1738339350584,0.02614391,3434.8,3434.7,9.09436]
[1738339350780,0.02614391,3434.8,3434.7,7.34086]
[1738339351185,0.02614391,3434.8,3434.7,4.553]
[1738339351597,0.02614391,3434.8,3434.7,1.553]
[1738339351801,0.01918779,3435.6,3434.8,0.00385609]
[1738339352031,2.91091,3435.4,3434.8,0.00385609]
[1738339352211,2.91106,3435.2,3434.8,0.00385609]
[1738339352411,1.5225,3435.1,3434.8,0.00385609]
[1738339353085,0.55,3435.0,3434.8,0.00385609]
[1738339353322,3.46129,3434.9,3434.8,0.00385609]
[1738339353629,5.7973763,3434.9,3434.8,0.00385609]
[1738339353937,5.05537,3435.3,3434.8,0.00385609]
[1738339354254,1.5944,3435.3,3434.8,0.00385609]
[1738339354391,4.54180248,3435.3,3434.8,0.00385609]
[1738339354821,4.50541,3435.3,3434.8,0.00385609]
[1738339355027,0.55,3435.2,3434.8,0.00385609]
[1738339355227,2.91113,3435.1,3434.8,0.00385609]
[1738339355429,1.5944,3435.3,3434.8,0.00385609]
[1738339355883,0.56918779,3435.6,3434.8,0.00385609]
[1738339356381,0.01918779,3435.6,3434.7,2.97983672]
[1738339356590,0.01918779,3435.6,3434.8,4.47335568]
[1738339356731,0.01918779,3435.6,3434.9,2.91127]
[1738339357346,0.01918779,3435.6,3434.8,1.56200568]
[1738339357847,0.01918779,3435.6,3434.8,4.47336568]
[1738339358043,0.01918779,3435.6,3434.8,4.38775694]
[1738339358584,0.01918779,3435.6,3434.9,1.746]
[1738339358733,0.01918779,3435.6,3435.5,7.65678]
[1738339359535,0.01918779,3435.6,3435.5,5.91078]
[1738339359739,0.01918779,3435.6,3435.5,3.0]
[1738339360339,0.01918779,3435.6,3435.5,5.91078]
[1738339360644,0.01918779,3435.6,3435.5,7.65678]
[1738339361048,1.5254,3435.3,3434.6,1.55]
[1738339361282,0.55,3434.2,3432.5,1.5672]
[1738339361799,0.03641082,3434.1,3432.5,1.5672]
[1738339361959,2.91215,3433.9,3432.5,1.5672]
[1738339362331,0.253,3434.0,3432.5,4.48052]
[1738339362587,3.20148647,3434.0,3433.0,2.81325]
[1738339362874,0.253,3434.0,3433.0,2.81325]
[1738339363254,2.91222,3433.9,3433.0,2.5575]
[1738339363450,0.28940734,3434.0,3433.0,2.5575]
[1738339363451,0.55,3433.7,3433.0,2.5575]
[1738339363655,2.91255,3433.5,3433.0,2.5575]
[1738339363857,0.03641184,3433.4,3433.0,2.5575]
[1738339364042,3.46281,3433.1,3433.0,2.5575]
[1738339364247,2.91281,3433.1,3433.0,2.5575]
[1738339364447,3.46281,3433.1,3433.0,2.5575]
[1738339364648,5.06141,3433.1,3433.0,2.5575]
[1738339364874,6.23642976,3433.1,3433.0,2.5575]
[1738339365252,2.9118,3434.3,3433.0,2.5575]
[1738339365540,1.5516,3434.7,3433.1,3.0]
[1738339365786,1.5516,3434.7,3433.2,1.5052]
[1738339366113,1.5516,3434.7,3433.3,3.0]
[1738339366241,1.5516,3434.7,3433.4,1.041793]
[1738339366646,1.5516,3434.7,3433.3,0.0075]
[1738339366907,3.06361,3435.2,3433.3,2.92012]
[1738339366908,4.43837,3435.2,3433.3,2.92012]
[1738339367047,4.69237,3435.2,3433.5,3.0]
[1738339367242,0.03016822,3434.6,3433.6,1.5688]
[1738339367446,0.03016822,3434.6,3433.7,4.039373]
[1738339367659,0.03016822,3434.6,3433.8,0.0075]
[1738339367989,0.03016822,3434.6,3434.3,0.0075]
[1738339368194,0.03016822,3434.6,3434.2,1.5258]
[1738339368371,0.03016822,3434.6,3434.5,4.53183]
[1738339368563,0.03016822,3434.6,3434.5,7.53183]
[1738339369790,0.03016822,3434.6,3434.5,7.52433]
[1738339370419,0.03016822,3434.6,3434.5,4.6127]
[1738339371104,0.03016822,3434.6,3434.5,7.52433]
[1738339371313,0.03016822,3434.6,3434.5,8.6123187]
[1738339371513,0.03016822,3434.6,3434.5,5.7006887]
[1738339371737,0.03016822,3434.6,3434.5,4.6127]
[1738339372388,0.03016822,3434.6,3434.5,7.52433]
[1738339372589,0.03016822,3434.6,3434.5,7.53183]
[1738339372809,0.03016822,3434.6,3434.5,4.6127]
[1738339373817,0.03016822,3434.6,3434.5,7.53183]
[1738339374143,0.03016822,3434.6,3434.5,8.277513]
[1738339374994,0.03016822,3434.6,3434.5,5.365883]
[1738339375202,0.03016822,3434.6,3434.5,4.6127]
[1738339375497,0.03016822,3434.6,3433.8,1.5069]
[1738339375704,0.03016822,3434.6,3433.3,1.5069]
[1738339375882,0.03016822,3434.6,3433.5,2.91246]
[1738339376083,0.03016822,3434.6,3433.4,3.0]
[1738339376281,0.03016822,3434.6,3433.5,1.033223]
[1738339376485,0.002,3433.7,3433.5,1.033223]
[1738339376722,0.002,3433.7,3433.5,3.945693]
[1738339376934,0.002,3433.7,3433.5,0.033223]
[1738339377142,0.002,3433.7,3433.6,2.91239]
[1738339377392,0.002,3433.7,3433.6,3.0]
[1738339377999,0.002,3433.7,3433.6,5.91239]
[1738339378196,0.002,3433.7,3433.6,3.0]
[1738339378395,0.002,3433.7,3433.6,7.66589]
[1738339378655,0.002,3433.7,3433.6,9.21989]
[1738339379441,0.03016822,3434.6,3434.5,5.91163]
[1738339379941,0.03016822,3434.6,3434.5,9.23803]
[1738339380330,0.03016822,3434.6,3434.5,7.48453]
[1738339380811,0.03016822,3434.6,3434.5,7.49203]
[1738339381007,0.03016822,3434.6,3434.5,9.23803]
[1738339381920,8.22e-06,3434.6,3434.5,9.23803]
[1738339382243,1.29542922,3436.2,3435.4,2.91086]
[1738339382429,1.29542922,3436.2,3435.1,1.746]
[1738339382615,1.29542922,3436.2,3435.0,0.0075]
[1738339382948,1.29542922,3436.2,3435.5,0.00011758]
[1738339383248,1.43660777,3435.7,3434.2,0.2]
[1738339383552,1.43660777,3435.7,3434.4,4.65771]
[1738339383733,1.43660777,3435.7,3434.6,1.746]
[1738339383942,1.43660777,3435.7,3434.8,4.65737]
[1738339384248,1.43660777,3435.7,3435.6,1.53531158]
[1738339384452,1.43660777,3435.7,3434.7,2.0]
[1738339384749,1.43660777,3435.7,3434.8,0.23]
[1738339384984,1.43660777,3435.7,3435.4,2.9108]
[1738339385190,1.43660777,3435.7,3435.6,2.91069]
[1738339385489,1.43660777,3435.7,3435.5,1.6307]
[1738339385889,1.43660777,3435.7,3435.6,2.91069]
[1738339386184,1.43660777,3435.7,3435.5,1.6307]
[1738339386384,1.43660777,3435.7,3435.6,2.91069]
[1738339386688,1.43660777,3435.7,3435.6,3.0]
[1738339387076,1.43660777,3435.7,3435.5,1.6307]
[1738339387272,1.43660777,3435.7,3434.4,1.6642]
[1738339387474,1.43660777,3435.7,3434.5,2.91157]
[1738339387687,1.43660777,3435.7,3434.7,2.91138]
[1738339387892,1.43660777,3435.7,3434.7,0.0075]
[1738339388054,1.5198,3435.9,3434.8,2.91136]
[1738339388253,1.5198,3435.9,3434.6,2.91153]
[1738339388449,1.5198,3435.9,3434.4,1.6642]
[1738339388858,1.5198,3435.9,3434.4,4.6642]
[1738339389159,1.5198,3435.9,3434.6,2.91154]
[1738339389791,1.5198,3435.9,3434.4,1.6642]
[1738339389996,1.5198,3435.9,3434.4,4.6642]
[1738339390199,1.5198,3435.9,3434.4,1.6642]
[1738339390492,1.5198,3435.9,3434.6,2.91151]
[1738339390687,1.5198,3435.9,3434.4,4.5759]
[1738339390688,1.5198,3435.9,3434.5,0.0075]
[1738339390881,1.5198,3435.9,3434.5,3.0075]
[1738339391196,1.5198,3435.9,3434.7,3.0]
[1738339391370,1.5198,3435.9,3434.7,2.91143]
[1738339391792,1.5198,3435.9,3434.5,0.0075]
[1738339391993,1.5198,3435.9,3434.9,2.91121]
[1738339392502,1.29542922,3436.2,3435.4,0.0075]
[1738339392805,1.29542922,3436.2,3435.6,3.0]
[1738339393375,1.29542922,3436.2,3435.5,3.0]
[1738339394005,1.29542922,3436.2,3435.3,4.6007]
[1738339394186,1.29542922,3436.2,3435.3,1.6007]
[1738339394362,1.29542922,3436.2,3434.8,2.91137]
[1738339394363,1.6124,3436.1,3434.9,1.5719]
[1738339394788,1.6124,3436.1,3434.9,4.48316]
[1738339394990,1.6124,3436.1,3434.9,1.5719]
[1738339395198,1.93015191,3436.1,3434.8,3.0]
[1738339395467,1.93015191,3436.1,3434.6,3.0]
[1738339395688,1.93015191,3436.1,3434.8,2.59205]
[1738339395889,1.93015191,3436.1,3434.7,2.91144]
[1738339396087,1.93015191,3436.1,3434.4,2.91164]
[1738339396307,1.93015191,3436.1,3434.2,2.91936]
[1738339396471,1.93015191,3436.1,3434.0,2.91204]
[1738339396671,1.93015191,3436.1,3434.2,2.91181]
[1738339396893,1.93015191,3436.1,3434.0,2.91204]
[1738339396894,0.9310611,3436.0,3434.3,2.91178]
[1738339397203,2.91045,3435.9,3434.1,2.91196]
[1738339397427,1.6642,3435.8,3434.1,2.91196]
[1738339397704,1.6642,3435.8,3433.9,4.53071]
[1738339398011,0.55057111,3435.7,3434.0,3.20332]
[1738339398309,1.5343,3435.6,3434.1,3.0]
[1738339398516,1.5343,3435.6,3434.0,0.2913]
[1738339398918,1.5343,3435.6,3434.1,3.0]
[1738339399106,1.5343,3435.6,3434.1,0.0075]
[1738339399675,1.5343,3435.6,3434.7,3.0]
[1738339399871,1.5343,3435.6,3435.0,3.0]
[1738339400071,1.5343,3435.6,3434.7,2.91146]
[1738339400306,1.5343,3435.6,3434.8,3.0]
[1738339400708,1.5343,3435.6,3434.5,3.0]
[1738339400908,1.5343,3435.6,3434.7,3.0]
[1738339401143,1.5343,3435.6,3434.5,3.0]
[1738339401305,1.5343,3435.6,3434.5,5.91158]
[1738339401608,1.5343,3435.6,3434.5,5.91161]
[1738339401788,1.5343,3435.6,3434.4,3.0]
[1738339401984,1.5343,3435.6,3434.4,5.91171]
[1738339402597,1.5343,3435.6,3434.3,3.0]
[1738339402801,1.5343,3435.6,3434.1,2.91195]
[1738339403018,1.5343,3435.6,3434.1,2.91194]
[1738339403310,2.95395476,3435.9,3433.9,0.2913]
[1738339403311,1.5594,3435.5,3433.9,0.2913]
[1738339403514,2.91086,3435.4,3433.5,1.5099]
[1738339403735,1.5594,3434.8,3433.1,4.42268]
[1738339403930,1.5594,3434.7,3433.0,5.47039]
[1738339404297,2.91193,3434.2,3433.0,2.5575]
[1738339404616,1.6593,3434.0,3433.0,2.5575]
[1738339404815,1.6593,3433.8,3433.0,2.5575]
[1738339404993,5.484147,3433.8,3433.0,2.5575]
[1738339405192,2.1148,3433.7,3433.0,2.5575]
[1738339405452,1.5648,3433.7,3433.0,2.5575]
[1738339405859,1.5475,3433.5,3433.0,2.5575]
[1738339406202,0.55,3433.4,3433.0,2.5575]
[1738339406456,5.01031,3433.1,3433.0,2.5575]
[1738339408534,4.46031,3433.1,3433.0,2.5575]
[1738339408692,5.01031,3433.1,3433.0,2.5575]
[1738339409144,5.01031,3433.1,3433.0,0.8909]
[1738339409751,2.9131,3432.8,3431.1,2.8909]
[1738339409929,1.5724,3432.7,3431.1,2.8909]
[1738339410399,1.5724,3432.7,3431.2,3.0]
[1738339410600,0.55,3432.5,3431.1,2.8909]
[1738339410825,0.55,3432.0,3431.1,2.8909]
[1738339411062,4.48683,3431.2,3431.1,2.8909]
[1738339411268,5.81338651,3431.2,3431.1,2.8909]
[1738339411435,2.862522,3431.2,3431.1,2.8909]
[1738339411627,2.1224,3431.2,3431.1,2.8909]
[1738339412056,1.5724,3431.2,3431.1,2.8909]
[1738339412385,1.5724,3431.9,3431.1,2.8909]
[1738339412730,1.5724,3431.9,3431.2,3.0]
[1738339412925,0.55,3431.8,3431.2,3.0]
[1738339413481,1.29542922,3431.7,3431.1,2.8909]
[1738339413623,1.29542922,3431.7,3431.2,3.0]
[1738339414929,0.55,3431.6,3431.2,3.0]
[1738339415242,1.29542922,3431.7,3431.2,3.0]
[1738339415243,2.0559,3431.3,3431.2,3.0]
[1738339415642,4.97024,3431.3,3431.1,2.8909]
[1738339416074,4.97024,3431.3,3431.2,3.0]
[1738339416275,4.97024,3431.3,3431.1,2.8909]
[1738339416476,2.950141,3431.2,3431.1,2.8909]
[1738339416685,2.1617,3431.2,3431.1,2.8909]
[1738339417177,5.07613,3431.2,3431.1,2.8909]
[1738339417642,5.07613,3431.2,3431.1,2.3409]
[1738339417643,5.08363,3431.2,3431.1,2.3409]
[1738339418596,2.91557,3429.9,3428.6,0.1]
[1738339418892,0.0075,3430.7,3428.4,0.1]
[1738339418893,3.78357759,3430.7,3428.4,0.1]
[1738339419034,2.91494,3430.6,3428.9,0.1]
[1738339419232,2.8951,3430.8,3428.2,2.91696]
[1738339419233,2.91532,3430.2,3428.7,0.1]
[1738339419660,2.91553,3429.9,3428.4,0.1]
[1738339419871,2.91585,3429.6,3428.5,0.1]
[1738339420045,0.24,3429.7,3428.3,0.1]
[1738339420267,0.24,3429.7,3428.0,0.1]
[1738339420432,0.55,3429.0,3427.8,0.15861]
[1738339420628,0.55,3428.8,3428.0,0.1]
[1738339420832,0.55,3428.6,3427.8,0.1]
[1738339421189,0.55,3428.9,3427.6,0.1]
[1738339421332,0.55,3428.7,3427.4,0.1]
[1738339421536,0.55,3428.5,3427.5,0.16891]
[1738339421832,0.55,3428.5,3427.4,0.1]
[1738339422030,0.58646815,3428.5,3427.4,0.1]
[1738339422335,0.55,3428.7,3427.9,0.1]
[1738339422549,0.55,3429.0,3427.7,0.1]
[1738339422749,3.46648,3428.8,3427.5,0.1]
[1738339422992,0.55,3428.9,3427.5,0.1]
[1738339423299,3.0951,3430.6,3428.5,0.1]
[1738339423445,3.0951,3430.6,3427.9,1.518]
[1738339423446,2.91577,3429.7,3428.3,0.1]
[1738339423652,0.55,3429.6,3428.5,0.1]
[1738339423848,0.55,3430.3,3428.8,7.61576]
[1738339424048,0.55,3430.1,3429.0,0.1]
[1738339424248,0.0364543,3430.0,3428.6,0.1]
[1738339424483,0.55,3429.9,3428.6,0.1]
[1738339424694,0.24,3430.0,3429.0,0.1]
[1738339424876,0.55,3429.9,3428.7,0.1]
[1738339425093,0.03645098,3429.9,3428.7,0.1]
[1738339425265,3.46551,3430.0,3428.9,0.1]
[1738339425266,0.55,3430.0,3428.9,0.1]
[1738339425697,0.55,3430.0,3429.1,0.1]
[1738339426116,0.55,3430.3,3429.5,0.1]
[1738339426315,0.55,3430.4,3429.1,0.1]
[1738339426822,0.55,3430.5,3429.8,0.1]
[1738339427021,0.55,3431.1,3429.8,0.1]
[1738339427183,0.55,3430.8,3429.8,0.1]
[1738339427392,0.55,3431.2,3430.0,0.1]
[1738339427719,0.55,3431.2,3430.3,0.1]
[1738339428075,0.03643672,3431.1,3429.9,0.1]
[1738339428415,0.03643672,3431.1,3429.2,4.49561]
[1738339428416,0.55,3431.2,3430.3,0.1]
[1738339429111,0.58643748,3431.2,3429.9,0.1]
[1738339429430,0.55,3431.2,3430.2,0.1]
[1738339429728,0.55,3431.2,3430.2,1.6208]
[1738339429880,0.55,3431.4,3430.3,0.16208]
[1738339430293,0.55,3431.4,3430.5,0.1]
[1738339430807,2.95028434,3431.9,3430.3,0.16208]
[1738339430808,0.55,3431.8,3430.7,0.1]
[1738339431010,0.238,3431.7,3430.7,0.1]
[1738339431204,0.03643325,3431.9,3430.7,0.1]
[1738339431205,2.95030325,3431.9,3430.7,0.1]
[1738339431408,3.77607759,3432.7,3430.7,0.1]
[1738339431409,0.55,3431.8,3431.0,0.1]
[1738339431744,0.55,3432.0,3431.0,0.1]
[1738339432049,0.55,3432.1,3431.0,0.1]
[1738339432344,1.266507,3432.1,3431.0,0.1]
[1738339432547,0.55,3432.2,3431.2,0.1]
[1738339432688,0.55,3432.1,3431.0,0.1]
[1738339432894,0.55,3432.1,3430.3,3.07727]
[1738339432895,2.91423,3431.5,3430.7,0.1]
[1738339433095,2.95017783,3432.0,3430.7,0.1]
[1738339433096,0.55,3431.4,3430.7,0.1]
[1738339433721,0.55,3431.1,3430.3,0.26208]
[1738339433940,0.55,3431.3,3430.3,0.26208]
[1738339434346,0.55,3431.1,3430.3,0.26208]
[1738339434798,0.55,3431.1,3429.9,0.1]
[1738339434799,0.55,3430.8,3429.9,0.1]
[1738339435394,0.55,3431.0,3430.0,0.1]
[1738339435897,2.91461,3431.0,3430.0,0.1]
[1738339436331,0.55,3431.2,3430.0,0.1]
[1738339436495,0.55,3431.2,3430.2,0.1]
[1738339436848,0.55,3431.0,3430.0,0.1]
[1738339436993,0.55,3430.8,3429.8,0.1]
[1738339437399,0.55,3430.5,3429.8,0.1]
[1738339437635,0.58644265,3430.5,3429.3,0.1]
[1738339437839,0.55,3430.5,3429.4,0.1]
[1738339438550,3.46505,3430.5,3429.4,0.1]
[1738339438970,2.9154,3430.1,3429.2,1.5165]
[1738339439140,0.64170759,3430.1,3429.0,0.1]
[1738339439347,0.55,3429.9,3429.0,0.1]
[1738339439541,0.236,3429.9,3429.0,0.1]
[1738339439759,2.91494,3430.6,3429.4,0.1]
[1738339440117,0.82244644,3430.5,3428.9,1.6576]
[1738339440241,2.91571,3429.7,3428.9,1.5576]
[1738339440447,0.55,3429.0,3428.2,1.6576]
[1738339440838,2.95252946,3429.3,3426.7,1.167009]
[1738339440839,0.55,3429.3,3427.8,1.6576]
[1738339441078,3.46648,3428.8,3427.8,1.6576]
[1738339441343,0.55,3429.1,3428.2,0.1]
[1738339441544,0.55,3429.1,3427.8,1.6576]
[1738339441743,0.55,3428.6,3427.9,0.15576]
[1738339441938,0.55,3428.6,3427.3,1.7014]
[1738339441939,0.55,3428.3,3427.3,1.7014]
[1738339442197,0.55,3428.3,3427.5,0.1]
[1738339442341,0.236,3429.0,3427.8,0.1]
[1738339442342,0.55,3428.7,3427.8,0.1]
[1738339442700,0.58646442,3428.6,3427.3,1.7014]
[1738339442862,0.55,3428.3,3427.3,1.7014]
[1738339443060,2.91665,3428.6,3427.3,1.7014]
[1738339443383,3.5032089,3428.5,3427.4,0.17014]
[1738339443702,2.91707,3428.1,3427.4,0.17014]
[1738339443897,2.91746,3427.7,3426.9,1.6653]
[1738339444054,0.55,3427.7,3426.9,1.6653]
[1738339444463,0.55,3428.0,3427.1,0.1]
[1738339444661,0.55,3427.8,3426.9,1.5653]
[1738339444865,0.55,3427.8,3427.0,0.1]
[1738339445065,3.46721,3428.0,3427.0,0.1]
[1738339445257,0.55,3428.1,3427.0,0.1]
[1738339445452,0.55,3428.1,3427.5,0.1]
[1738339445665,3.46673,3428.5,3427.3,0.1]
[1738339445995,2.91699,3428.2,3427.1,0.1]
[1738339446144,2.91699,3428.2,3427.0,0.16653]
[1738339446145,1.1920268,3428.1,3427.0,0.26653]
[1738339446346,0.55,3428.1,3427.0,0.26653]
[1738339446583,0.55,3428.1,3427.6,0.1]
[1738339446902,0.236,3428.6,3427.6,0.1]
[1738339446903,0.55,3428.5,3427.6,0.1]
[1738339447063,0.55,3428.9,3427.8,0.1]
[1738339447262,0.55,3428.7,3427.8,0.1]
[1738339447478,0.55,3428.5,3427.3,0.1]
[1738339448007,0.55,3428.5,3427.4,0.1]
[1738339448008,2.91688,3428.4,3427.4,0.1]
[1738339448146,0.55,3428.3,3427.4,0.1]
[1738339448507,0.55,3428.3,3427.0,3.08453]
[1738339448508,0.55,3428.5,3427.9,0.1]
[1738339448797,0.55,3429.5,3428.1,0.1]
[1738339449051,0.55,3429.5,3427.9,1.6664]
[1738339449052,0.03646457,3429.4,3428.6,0.1]
[1738339449175,0.03646457,3429.4,3428.1,0.1]
[1738339449176,0.55,3429.0,3428.1,0.1]
[1738339449375,0.55,3428.6,3427.9,1.6664]
[1738339449881,0.55,3428.6,3427.8,0.1]
[1738339450091,0.55,3428.6,3428.0,0.1]
[1738339450313,0.55,3429.3,3428.5,1.5649]
[1738339450529,0.55,3429.3,3428.8,0.1]
[1738339450710,2.91528,3430.2,3428.5,1.5649]
[1738339450711,0.55,3430.1,3429.2,0.1]
[1738339450912,0.896528,3430.1,3429.4,0.1]
[1738339451110,0.55,3430.3,3429.5,1.658]
[1738339451325,0.55,3430.6,3430.2,0.1]
[1738339451538,0.58644023,3431.0,3430.0,0.1]
[1738339451843,0.55,3430.7,3430.0,0.1]
[1738339451981,0.97872102,3430.7,3430.0,0.1]
[1738339452179,0.97872102,3430.7,3429.5,1.658]
[1738339452180,0.55,3430.7,3430.3,0.1]
[1738339452414,0.55,3430.8,3430.3,0.1]
[1738339452814,0.55,3431.1,3430.5,0.1]
[1738339453034,0.55,3431.1,3430.7,0.1]
[1738339453342,3.77607759,3432.2,3431.1,0.1]
[1738339453343,0.236,3431.8,3431.1,0.1]
[1738339453500,0.55,3431.5,3430.9,0.1]
[1738339453844,0.55,3431.5,3431.1,0.1]
[1738339454340,0.55,3430.7,3430.4,0.1]
[1738339454517,0.55,3430.4,3429.5,0.1]
[1738339454730,0.55,3429.8,3429.5,0.1]
[1738339455031,0.27244958,3430.3,3429.7,0.1]
[1738339455032,0.55,3430.2,3429.7,0.1]
[1738339455337,0.55,3430.4,3429.7,0.1]
[1738339455548,0.55,3430.4,3429.4,1.5142]
[1738339455549,0.55,3430.2,3429.5,0.1]
[1738339455686,0.55,3429.9,3429.5,0.1]
[1738339455887,0.55,3429.7,3429.4,1.5142]
[1738339456144,0.55,3429.5,3429.3,0.1]
[1738339456434,0.55,3429.3,3429.1,0.1]
[1738339456636,0.55,3429.3,3427.8,2.8816724]
[1738339456637,0.55,3429.3,3428.9,0.1]
[1738339456783,0.55,3429.4,3428.9,0.1]
[1738339457233,0.55,3429.7,3429.1,0.1]
[1738339457394,0.55,3429.7,3427.9,3.015]
[1738339457395,0.55,3429.7,3429.6,1.6297]
[1738339457605,0.55,3430.3,3429.6,1.79267]
[1738339457785,2.91526,3430.3,3429.9,0.1]
[1738339458107,2.91526,3430.3,3429.2,0.1]
[1738339458108,0.03644599,3430.3,3429.2,0.1]
[1738339458422,0.55,3429.7,3429.3,0.1]
[1738339458593,0.55,3429.7,3429.5,0.1]
[1738339458802,0.55,3430.0,3429.9,0.1]
[1738339458982,0.55,3430.3,3429.9,0.1]
[1738339459184,0.55,3430.3,3430.1,0.1]
[1738339459417,3.14986,3430.7,3430.0,0.1]
[1738339459418,0.55,3430.6,3430.0,0.1]
[1738339459639,0.919986,3430.6,3430.2,0.1]
[1738339459837,0.55,3430.5,3430.2,0.1]
[1738339459986,3.46511,3430.5,3429.8,0.1]
[1738339460183,3.46511,3430.5,3429.7,1.6261]
[1738339460184,2.9153,3430.2,3429.7,1.6261]
[1738339460395,0.55,3430.1,3429.5,0.1]
[1738339460602,0.55,3430.1,3429.2,1.5977]
[1738339460603,3.46579,3429.6,3429.2,1.5977]
[1738339460846,3.46579,3429.6,3429.0,0.1]
[1738339461058,0.03644905,3430.1,3428.6,0.1]
[1738339461059,0.55,3429.1,3428.6,0.1]
[1738339461349,0.0364557,3430.1,3428.7,0.1]
[1738339461350,0.55,3429.5,3428.7,0.1]
[1738339461556,2.91623,3429.1,3428.7,0.1]
[1738339461716,0.55,3429.0,3428.7,0.1]
[1738339461913,2.91525,3430.3,3429.3,0.1]
[1738339462098,0.55,3430.0,3429.6,0.1]
[1738339462302,0.55,3429.8,3429.4,0.1]
[1738339462501,3.46564,3429.8,3429.4,0.1]
[1738339462696,3.4655,3430.0,3429.7,0.1]
[1738339462954,2.91579,3429.6,3429.2,1.597]
[1738339463117,0.315007,3430.4,3429.1,0.1]
[1738339463313,3.46606,3429.3,3428.9,0.1]
[1738339463516,0.55,3429.3,3428.9,0.1]
[1738339463711,0.55,3429.4,3428.9,0.1]
[1738339463952,0.55,3429.4,3429.2,0.1]
[1738339464247,0.55,3429.5,3429.2,0.1]
[1738339464534,3.46545,3430.0,3428.3,1.7296]
[1738339464720,0.55,3429.4,3428.5,0.1]
[1738339464919,0.55,3429.0,3428.7,0.1]
[1738339465301,0.015,3429.8,3428.3,1.7296]
[1738339465520,2.9161,3429.3,3429.0,0.1]
[1738339465747,0.55,3429.5,3429.0,0.1]
[1738339466107,0.58645519,3429.5,3429.3,0.1]